bitfinex/quotes_SOLUSD_20251125
["timestamp","ask_amount","ask_price","bid_price","bid_amount"]
[1764102672634,3.22,137.69,137.68,7.26321905]
[1764102672940,3.22,137.69,137.67,0.67]
[1764102673345,0.90750689,137.74,137.68,6.60783632]
[1764102673531,3.22,137.74,137.7,6.60783632]
[1764102673729,7.5154091,137.73,137.7,0.67]
[1764102673941,7.5154091,137.73,137.71,0.67]
[1764102674320,6.60783632,137.72,137.66,23.57304]
[1764102674632,0.90757278,137.73,137.69,0.67]
[1764102674835,0.90757278,137.73,137.69,3.43896572]
[1764102675043,0.90757278,137.73,137.7,0.67]
[1764102675944,16.408864,137.75,137.71,2.76896572]
[1764102676145,16.408864,137.75,137.7,0.67]
[1764102676146,16.408864,137.75,137.72,2.76896572]
[1764102676346,0.1,137.75,137.71,2.76896572]
[1764102676549,0.1,137.75,137.71,6.59001026]
[1764102676850,0.1,137.75,137.72,7.93079429]
[1764102677346,0.1,137.75,137.73,0.67]
[1764102677929,0.1,137.75,137.69,6.59001026]
[1764102677930,7.49751715,137.74,137.69,6.59001026]
[1764102678130,7.49751715,137.74,137.7,0.67]
[1764102678353,0.90750689,137.74,137.7,7.26001026]
[1764102678537,7.49751715,137.74,137.7,7.26001026]
[1764102678747,7.49751715,137.74,137.71,0.67]
[1764102678926,23.90631527,137.75,137.71,7.93163088]
[1764102679126,23.90631527,137.75,137.72,6.59001026]
[1764102679127,16.408864,137.75,137.72,6.59001026]
[1764102679328,16.408864,137.75,137.74,6.59001026]
[1764102679329,0.1,137.75,137.74,6.59001026]
[1764102679834,0.1,137.77,137.74,7.26001026]
[1764102680141,0.1,137.77,137.72,16.308864]
[1764102680142,10.81692457,137.83,137.78,6.59001026]
[1764102680548,1.00691431,137.83,137.82,6.59001026]
[1764102680871,0.67,137.91,137.83,0.67]
[1764102681162,0.38771655,137.9,137.87,6.59001026]
[1764102681448,0.67,137.94,137.85,3.24]
[1764102681651,0.38771655,137.94,137.9,6.59001026]
[1764102681854,6.97772681,137.94,137.9,7.26001026]
[1764102682054,0.38771655,137.94,137.9,0.67]
[1764102682254,0.67,137.93,137.88,6.59001026]
[1764102682457,0.38771655,137.92,137.88,7.26001026]
[1764102682755,0.38771655,137.92,137.88,6.59001026]
[1764102682959,14.22874619,137.92,137.88,7.26001026]
[1764102683258,7.6373283,137.94,137.9,6.59001026]
[1764102683642,1.6,137.95,137.91,0.7]
[1764102683839,1.6,137.95,137.93,6.59001026]
[1764102684156,1.6,137.95,137.92,6.59001026]
[1764102684357,0.38771655,137.98,137.91,0.7]
[1764102684556,0.38771655,137.98,137.93,6.59001026]
[1764102684758,1.04771655,137.98,137.94,6.59001026]
[1764102685062,7.90803671,137.97,137.94,6.59001026]
[1764102685245,0.38771655,137.96,137.94,6.59001026]
[1764102685440,0.38771655,137.96,137.86,43.25231629]
[1764102685776,0.38771655,137.96,137.92,6.59001026]
[1764102686066,0.38771655,137.96,137.93,6.59001026]
[1764102686557,0.38771655,137.96,137.94,6.59001026]
[1764102686767,0.38771655,137.98,137.95,6.59001026]
[1764102686967,0.38771655,137.98,137.95,7.29001026]
[1764102687366,7.63544157,137.98,137.95,0.7]
[1764102687962,7.63544157,137.98,137.94,6.59001026]
[1764102688155,7.63544157,137.98,137.96,6.59001026]
[1764102688156,0.38771655,137.98,137.96,6.59001026]
[1764102688330,0.38771655,137.98,137.93,7.29001026]
[1764102688331,14.88547696,137.98,137.93,7.29001026]
[1764102688535,14.88547696,137.98,137.89,41.69091585]
[1764102688536,7.6354667,137.98,137.94,7.29001026]
[1764102689437,0.38771655,137.98,137.95,6.59001026]
[1764102689747,7.63532583,137.98,137.95,6.59001026]
[1764102689940,7.63532583,137.98,137.94,7.29001026]
[1764102690357,0.38771655,137.98,137.95,6.59001026]
[1764102690530,0.38771655,137.99,137.95,7.29001026]
[1764102690733,0.38771655,137.99,137.96,7.29001026]
[1764102690956,3.62771655,138.0,137.97,6.59001026]
[1764102691149,3.62771655,138.0,137.97,7.29001026]
[1764102691336,0.38771655,138.02,137.98,7.29001026]
[1764102691659,6.97772681,138.02,137.98,0.7]
[1764102691841,0.38771655,138.02,137.98,0.7]
[1764102692042,0.38771655,138.02,137.98,7.29001026]
[1764102692252,3.24,138.03,137.99,6.59001026]
[1764102692443,3.24,138.03,137.99,7.29001026]
[1764102692756,9.83001026,138.03,137.99,0.7]
[1764102692965,7.24690194,137.99,137.92,7.95058004]
[1764102693150,7.24690194,137.99,137.84,44.8625049]
[1764102693151,3.62771655,137.98,137.91,13.84096225]
[1764102693359,4.28771655,137.98,137.91,13.84096225]
[1764102693559,4.28771655,137.98,137.91,14.54096225]
[1764102694267,4.28771655,137.98,137.92,7.29001026]
[1764102694452,6.59001026,137.97,137.92,7.29001026]
[1764102694647,0.38771655,137.96,137.91,36.81789147]
[1764102694851,11.82689155,137.97,137.93,0.7]
[1764102695159,11.439175,137.96,137.93,7.95003997]
[1764102695466,11.82689155,137.97,137.93,19.38921497]
[1764102695651,19.07497301,137.97,137.94,0.7]
[1764102696159,7.63579801,137.97,137.94,0.7]
[1764102696364,19.07497301,137.97,137.94,0.7]
[1764102698371,11.439175,137.96,137.9,7.25163161]
[1764102698549,11.439175,137.95,137.91,0.7]
[1764102699568,12.099175,137.94,137.89,7.9519521]
[1764102699868,11.439175,137.94,137.89,0.7]
[1764102700073,11.439175,137.94,137.88,7.25262773]
[1764102700074,11.439175,137.94,137.9,12.139175]
[1764102700370,3.60771655,137.95,137.91,11.439175]
[1764102700567,3.60771655,137.95,137.92,7.25058004]
[1764102700867,3.60771655,137.95,137.92,0.7]
[1764102701168,3.22,137.95,137.93,0.7]
[1764102701541,21.90817986,137.95,137.91,0.7]
[1764102701737,3.22,137.95,137.92,0.7]
[1764102701969,3.22,137.95,137.92,12.139175]
[1764102702463,3.22,137.95,137.93,0.7]
[1764102702769,3.22,137.95,137.93,19.38914394]
[1764102703165,3.22,137.95,137.94,0.7]
[1764102703355,3.60771655,137.98,137.94,12.139175]
[1764102703670,0.38771655,137.98,137.95,12.139175]
[1764102704256,0.38771655,137.98,137.95,0.7]
[1764102704653,3.22,137.99,137.96,12.139175]
[1764102704970,0.66,138.05,137.98,11.439175]
[1764102705271,3.60771655,138.04,138.0,11.439175]
[1764102705473,3.22,138.04,138.02,11.439175]
[1764102705679,11.439175,138.08,138.03,11.439175]
[1764102705884,0.38771655,138.07,137.99,3.22]
[1764102706178,0.1,138.12,138.03,16.308864]
[1764102706353,0.48771655,138.12,138.08,8.91166963]
[1764102706555,11.92689155,138.12,138.08,0.7]
[1764102706759,1.14771655,138.12,138.08,0.7]
[1764102706966,1.14771655,138.12,138.08,19.38106162]
[1764102706967,0.76,138.12,138.08,19.38106162]
[1764102707170,0.1,138.12,138.09,11.439175]
[1764102707377,0.1,138.12,138.09,12.139175]
[1764102707884,0.1,138.12,138.1,12.139175]
[1764102708176,0.1,138.12,138.09,0.7]
[1764102708468,0.1,138.12,138.11,11.439175]
[1764102708699,0.1,138.12,138.11,12.139175]
[1764102708975,2.29370272,138.16,138.12,8.80994492]
[1764102709176,2.29370272,138.16,138.12,0.7]
[1764102709489,2.29370272,138.16,138.13,0.7]
[1764102710051,13.73287772,138.16,138.11,12.139175]
[1764102710379,13.73287772,138.16,138.1,10.4810121]
[1764102710380,11.439175,138.14,138.1,7.2410121]
[1764102710552,11.439175,138.14,138.1,7.9410121]
[1764102710751,11.439175,138.13,138.1,0.7]
[1764102710963,11.439175,138.13,138.09,11.439175]
[1764102710964,13.73287772,138.16,138.11,12.139175]
[1764102711193,12.48689155,138.15,138.1,0.7]
[1764102711474,11.439175,138.12,138.08,12.139175]
[1764102711652,0.66,138.14,138.08,12.139175]
[1764102711855,0.38771655,138.15,138.11,11.439175]
[1764102712168,2.29370272,138.16,138.13,11.439175]
[1764102712367,13.73287772,138.16,138.12,11.439175]
[1764102712563,11.439175,138.15,138.11,11.439175]
[1764102712771,11.439175,138.14,138.1,0.7]
[1764102712970,11.439175,138.13,138.1,0.7]
[1764102713170,11.439175,138.13,138.08,19.38124298]
[1764102713368,11.82689155,138.13,138.09,0.7]
[1764102713555,11.439175,138.12,138.07,18.68179628]
[1764102713756,11.439175,138.12,138.08,0.7]
[1764102714062,11.439175,138.11,138.07,0.7]
[1764102714262,11.439175,138.11,138.07,0.408]
[1764102714464,11.439175,138.1,138.05,18.6828734]
[1764102714661,11.439175,138.09,138.04,10.48413267]
[1764102714986,11.439175,138.08,138.04,3.24]
[1764102715280,11.439175,138.08,138.04,11.439175]
[1764102716160,11.439175,138.08,138.02,25.35851119]
[1764102716161,14.679175,138.1,138.06,11.439175]
[1764102716495,3.24,138.1,138.06,11.439175]
[1764102716675,3.24,138.1,138.07,7.94244098]
[1764102716875,14.679175,138.1,138.07,7.24244098]
[1764102717181,14.679175,138.1,138.07,7.94244098]
[1764102717370,14.679175,138.1,138.07,0.7]
[1764102717966,11.439175,138.08,138.01,12.139175]
[1764102718189,11.439175,138.06,138.01,11.439175]
[1764102718375,11.439175,138.06,138.02,0.7]
[1764102718586,11.439175,138.07,138.02,12.139175]
[1764102718901,11.439175,138.05,138.02,0.7]
[1764102719076,11.439175,138.05,138.0,32.79421691]
[1764102719077,11.439175,138.06,138.01,18.68502674]
[1764102719286,11.439175,138.06,138.03,0.7]
[1764102719586,11.439175,138.05,138.02,0.7]
[1764102720706,18.68307047,138.05,138.0,18.68538873]
[1764102720894,11.439175,138.04,138.0,0.69]
[1764102721199,3.24,138.07,138.01,12.129175]
[1764102721501,3.24,138.07,137.99,7.24674022]
[1764102721502,11.439175,138.04,137.99,36.80317009]
[1764102721802,11.439175,138.04,138.0,0.69]
[1764102721980,11.439175,138.06,138.01,11.439175]
[1764102722169,0.38771655,138.11,138.05,11.439175]
[1764102722369,14.679175,138.11,138.06,11.439175]
[1764102722571,11.439175,138.1,138.05,11.439175]
[1764102722773,11.439175,138.1,138.06,7.24322758]
[1764102722997,14.679175,138.11,138.07,11.439175]
[1764102723197,15.06689155,138.12,138.07,12.129175]
[1764102723497,11.439175,138.11,138.07,0.69]
[1764102723699,15.78689155,138.12,138.07,12.129175]
[1764102724007,23.02707508,138.12,138.07,0.69]
[1764102724169,23.02707508,138.12,138.07,12.129175]
[1764102724369,11.58790008,138.12,138.07,12.129175]
[1764102724595,23.02707508,138.12,138.07,12.129175]
[1764102724807,23.02707508,138.12,138.07,19.3714628]
[1764102725400,11.58790008,138.12,138.07,19.3714628]
[1764102725700,11.439175,138.1,138.04,0.69]
[1764102725991,11.439175,138.09,138.04,19.37345202]
[1764102726189,1.10771655,138.11,138.04,19.37345202]
[1764102726190,11.439175,138.08,138.04,19.37345202]
[1764102726400,11.439175,138.07,138.02,19.37432396]
[1764102726587,11.439175,138.07,138.0,12.129175]
[1764102726588,11.439175,138.05,138.0,12.129175]
[1764102726897,11.439175,138.06,138.02,7.24532676]
[1764102727067,18.68248504,138.06,138.01,19.37488677]
[1764102727267,11.439175,138.05,138.01,19.37488677]
[1764102727716,11.439175,138.03,138.0,7.24617968]
[1764102727908,11.439175,138.02,137.99,7.24689568]
[1764102728079,11.439175,138.03,138.0,0.69]
[1764102728283,15.399175,138.04,138.0,0.69]
[1764102728989,15.399175,138.04,138.0,7.93596787]
[1764102729184,21.92352909,138.04,137.99,11.439175]
[1764102729391,11.439175,138.0,137.96,19.57757008]
[1764102729592,11.439175,138.0,137.96,8.13839508]
[1764102729788,0.72,138.02,137.96,18.88757008]
[1764102729990,14.679175,138.03,137.99,11.439175]
[1764102730193,14.679175,138.03,137.99,12.129175]
[1764102730426,11.439175,138.02,137.98,11.439175]
[1764102730724,11.439175,138.02,137.97,12.129175]
[1764102730897,11.439175,138.02,137.98,7.24742716]
[1764102731225,11.439175,138.01,137.96,0.2]
[1764102731516,11.439175,138.0,137.96,0.2]
[1764102731724,11.439175,137.99,137.96,7.44832118]
[1764102732102,21.92404822,138.03,137.98,11.439175]
[1764102732290,11.439175,138.0,137.96,0.89]
[1764102732618,11.439175,138.0,137.96,8.13842611]
[1764102732792,3.24,138.02,137.98,11.439175]
[1764102732993,3.24,138.02,137.99,7.24690194]
[1764102733190,21.92451985,138.02,137.98,0.69]
[1764102733413,11.439175,138.01,137.96,18.88733777]
[1764102733597,11.439175,138.01,137.96,8.13816277]
[1764102733796,11.439175,138.01,137.97,0.69]
[1764102734023,11.439175,138.01,137.97,12.129175]
[1764102734184,3.96,138.02,137.97,12.129175]
[1764102734391,15.399175,138.02,137.97,12.129175]
[1764102734810,3.24,138.02,137.98,12.129175]
[1764102735010,3.24,138.02,137.98,19.37611961]
[1764102735224,15.399175,138.02,137.98,19.37611961]
[1764102735600,22.64457056,138.02,137.98,18.68611961]
[1764102735808,11.439175,138.01,137.97,7.24777404]
[1764102736016,3.24,138.02,137.98,12.129175]
[1764102736194,12.159175,138.07,138.01,11.439175]
[1764102736397,3.24,138.06,138.02,12.129175]
[1764102736818,3.24,138.06,138.03,0.69]
[1764102737128,3.24,138.06,138.02,11.439175]
[1764102737323,3.24,138.06,138.03,11.439175]
[1764102737824,12.159175,138.05,138.0,11.439175]
[1764102738002,12.54689155,138.05,138.0,11.439175]
[1764102738194,12.54689155,138.05,138.01,0.69]
[1764102738806,12.54689155,138.05,138.02,7.24532676]
[1764102739097,12.54689155,138.05,138.01,7.93565443]
[1764102739310,0.38771655,138.05,138.01,7.93565443]
[1764102739498,11.82689155,138.05,138.01,7.93565443]
[1764102739699,11.439175,138.03,137.99,7.2465938]
[1764102739899,14.679175,138.03,137.99,7.2465938]
[1764102740100,14.679175,138.03,137.99,7.9365938]
[1764102740399,3.24,138.03,137.99,37.49302367]
[1764102740604,12.54689155,138.02,137.97,12.129175]
[1764102740800,19.79233012,138.02,137.98,7.24742716]
[1764102741231,19.79233012,138.02,137.98,7.93742716]
[1764102741417,0.38771655,138.02,137.98,18.68660216]
[1764102741612,11.439175,138.03,137.99,12.129175]
[1764102741807,19.07154885,138.04,137.99,12.129175]
[1764102742017,14.679175,138.05,138.0,12.129175]
[1764102742226,11.439175,138.04,138.0,12.129175]
[1764102742900,11.439175,138.04,138.0,19.37523366]
[1764102743813,12.159175,138.05,138.01,11.439175]
[1764102744010,22.64319341,138.05,138.0,19.38523366]
[1764102744905,22.64319341,138.05,137.96,16.508864]
[1764102744906,7.24637681,138.0,137.96,0.2]
[1764102745126,11.439175,138.03,137.98,11.439175]
[1764102745329,3.24,138.04,138.0,11.439175]
[1764102745745,14.679175,138.04,138.0,0.7]
[1764102745906,11.439175,138.04,138.0,0.7]
[1764102746220,21.92207297,138.07,138.02,11.439175]
[1764102746530,11.439175,138.06,138.01,11.439175]
[1764102746906,11.439175,138.06,138.03,7.24480185]
[1764102747307,11.439175,138.06,138.02,7.9450884]
[1764102747308,18.68252436,138.06,138.02,7.9450884]
[1764102748208,11.439175,138.05,138.01,7.24585174]
[1764102748408,19.39252436,138.06,138.01,36.79965611]
[1764102748628,11.439175,138.06,138.02,12.139175]
[1764102748932,12.53689155,138.05,138.01,7.24585174]
[1764102749119,12.53689155,138.05,138.01,7.94585174]
[1764102749432,11.82689155,138.05,138.01,7.94585174]
[1764102750337,19.07092761,138.05,138.01,7.94585174]
[1764102750727,11.439175,138.04,138.0,7.2461359]
[1764102750922,11.439175,138.04,138.0,7.9461359]
[1764102751125,11.439175,138.04,138.01,0.7]
[1764102751627,7.63175261,138.05,138.01,7.94540657]
[1764102751628,19.07092761,138.05,138.01,7.94540657]
[1764102751813,19.78092761,138.05,138.01,0.7]
[1764102752016,19.07092761,138.05,138.01,0.7]
[1764102752626,19.07092761,138.05,138.01,19.38500693]
[1764102752627,0.38771655,138.05,138.01,19.38500693]
[1764102752826,3.24,138.05,138.02,11.439175]
[1764102753027,11.82689155,138.08,138.03,11.439175]
[1764102753338,11.82689155,138.08,138.04,11.439175]
[1764102753339,3.24,138.07,138.04,11.439175]
[1764102753948,3.24,138.07,138.05,7.24375226]
[1764102754723,7.95223384,138.08,138.04,19.38334855]
[1764102755041,11.19223384,138.08,138.04,7.94417355]
[1764102755243,22.63140884,138.08,138.04,7.94417355]
[1764102756561,17.75102758,138.08,138.04,7.94417355]
[1764102756739,17.75102758,138.08,138.04,7.24417355]
[1764102757059,7.26879374,138.07,138.03,7.24458752]
[1764102757559,7.26879374,138.07,138.03,7.94458752]
[1764102758624,6.55879374,138.05,138.02,7.24528402]
[1764102759225,7.65651029,138.06,138.02,7.94528402]
[1764102759671,3.24,138.06,138.03,0.7]
[1764102760033,9.79879374,138.06,138.03,0.7]
[1764102760746,17.04213549,138.06,138.02,7.24528402]
[1764102760944,0.71,138.12,138.05,6.55879374]
[1764102761254,7.26879374,138.12,138.07,6.55879374]
[1764102761473,7.26879374,138.12,138.05,6.55879374]
[1764102761474,6.55879374,138.1,138.05,6.55879374]
[1764102761760,6.55879374,138.1,138.04,0.7]
[1764102761761,9.79879374,138.09,138.04,7.25879374]
[1764102762146,10.50879374,138.09,138.04,7.25879374]
[1764102762329,10.50879374,138.09,138.05,0.7]
[1764102762531,7.26879374,138.08,138.03,10.49879374]
[1764102762972,6.55879374,138.07,138.02,6.55879374]
[1764102763278,6.55879374,138.04,138.01,7.24560832]
[1764102763451,6.55879374,138.04,138.0,7.24621691]
[1764102763633,6.55879374,138.04,138.0,7.94621691]
[1764102763837,7.26879374,138.04,138.0,7.94621691]
[1764102764637,6.55879374,138.02,137.97,14.50628294]
[1764102765038,7.26879374,138.02,137.98,0.7]
[1764102765278,0.71,138.02,137.98,0.7]
[1764102765467,3.24,138.03,138.0,6.55879374]
[1764102765848,3.24,138.03,138.0,7.25879374]
[1764102766546,6.55879374,138.05,138.01,14.50464548]
[1764102766747,0.38771655,138.06,138.02,6.55879374]
[1764102766964,3.24,138.07,138.04,6.55879374]
[1764102767356,3.24,138.07,138.04,7.25879374]
[1764102767765,0.71,138.06,138.02,6.55879374]
[1764102767965,10.18651029,138.07,138.02,6.55879374]
[1764102768266,6.55879374,138.05,138.01,7.24585174]
[1764102768793,0.71,138.06,138.01,7.24585174]
[1764102768794,7.26879374,138.06,138.02,0.7]
[1764102769000,14.51215937,138.06,138.02,0.7]
[1764102769293,7.26879374,138.06,138.02,0.7]
[1764102769984,6.55879374,138.06,138.02,0.7]
[1764102770656,13.80225875,138.06,138.02,7.2452138]
[1764102770857,7.65651029,138.05,138.0,0.7]
[1764102771076,7.65651029,138.05,138.0,7.25879374]
[1764102771873,0.38771655,138.05,138.01,7.25879374]
[1764102772077,14.1899753,138.06,138.01,7.25879374]
[1764102772271,14.8999753,138.06,138.01,7.25879374]
[1764102772477,13.80225875,138.06,138.02,7.25879374]
[1764102772668,13.80225875,138.06,138.02,14.50363378]
[1764102772669,7.24346501,138.06,138.02,14.50363378]
[1764102773258,18.13944322,138.07,138.02,14.50363378]
[1764102773454,18.13944322,138.07,138.03,0.71]
[1764102774202,10.89651029,138.07,138.03,0.71]
[1764102774383,6.94651029,138.07,138.03,7.26879374]
[1764102774591,7.65651029,138.07,138.03,7.26879374]
[1764102775466,7.65651029,138.07,138.03,7.95430444]
[1764102775901,0.71,138.06,138.03,7.24430444]
[1764102776067,7.26879374,138.06,138.03,7.24430444]
[1764102776777,0.71,138.06,138.03,7.24430444]
[1764102776963,7.26879374,138.06,138.03,7.24430444]
[1764102777384,7.26879374,138.06,138.02,7.24532676]
[1764102777589,7.26879374,138.06,138.02,7.95532676]
[1764102778188,6.94651029,138.07,138.03,0.71]
[1764102778374,14.89926251,138.07,138.02,14.5141205]
[1764102778573,6.55879374,138.06,138.02,7.95532676]
[1764102778792,6.55879374,138.04,137.99,7.9565499]
[1764102778966,6.55879374,138.03,137.99,7.9565499]
[1764102779283,6.55879374,138.02,137.99,0.71]
[1764102779663,6.55879374,138.02,137.99,7.95672073]
[1764102779863,6.55879374,138.03,137.99,13.80551447]
[1764102780080,7.21879374,138.03,137.99,14.46551447]
[1764102780668,7.21879374,138.03,137.98,18.11798085]
[1764102780669,7.21879374,138.02,137.96,18.98099615]
[1764102780873,7.21879374,138.02,137.98,6.55879374]
[1764102780874,0.66,138.02,137.98,6.55879374]
[1764102781069,9.79879374,138.03,137.99,7.21879374]
[1764102781598,17.70407265,138.03,137.98,13.8057518]
[1764102781774,6.55879374,138.02,137.98,7.24695806]
[1764102782089,3.24,138.03,137.99,7.21879374]
[1764102782495,6.94651029,138.04,138.0,0.66]
[1764102782696,7.21879374,138.03,137.97,7.90770839]
[1764102782895,6.55879374,138.02,137.99,0.66]
[1764102783074,7.21879374,138.03,137.99,0.66]
[1764102783986,14.46390061,138.03,137.99,7.90673193]
[1764102784873,14.46390061,138.03,137.99,14.46552567]
[1764102785074,14.46390061,138.03,137.99,7.90673193]
[1764102785268,14.46390061,138.03,137.98,6.55879374]
[1764102785469,7.21879374,138.02,137.97,31.92662732]
[1764102785887,7.21879374,138.02,137.98,7.21879374]
[1764102786495,7.21879374,138.02,137.99,7.24690194]
[1764102786796,6.55879374,138.02,137.99,7.90690194]
[1764102786994,17.04390061,138.03,137.99,7.90690194]
[1764102787192,6.55879374,138.05,138.01,6.55879374]
[1764102787379,9.79879374,138.06,138.02,6.55879374]
[1764102787577,17.04205833,138.06,138.02,6.55879374]
[1764102787793,17.70205833,138.06,138.02,0.66]
[1764102788687,0.66,138.05,138.02,7.24532676]
[1764102790208,9.79879374,138.06,138.02,7.90532676]
[1764102790513,11.04611096,138.07,138.02,10.00082593]
[1764102790687,3.22,138.06,138.02,10.00082593]
[1764102790887,3.88,138.06,138.02,10.66082593]
[1764102791105,6.63549917,138.06,138.02,10.66082593]
[1764102791523,3.41549917,138.05,138.01,10.00123834]
[1764102791716,3.80321572,138.05,138.01,3.41549917]
[1764102792015,2.75549917,138.03,138.0,7.24634143]
[1764102792309,10.65978835,138.04,138.0,7.24634143]
[1764102792614,2.75549917,138.03,137.98,13.90270735]
[1764102792911,2.75549917,138.03,137.98,6.65549917]
[1764102793105,2.75549917,138.01,137.98,0.66]
[1764102793287,2.75549917,138.01,137.96,0.2]
[1764102793488,2.75549917,138.0,137.96,0.2]
[1764102793713,3.41549917,138.0,137.96,7.44846069]
[1764102793902,0.66,138.0,137.96,8.10846069]
[1764102794617,0.66,138.0,137.96,10.86395986]
[1764102795014,0.38771655,138.02,137.98,2.75549917]
[1764102795200,5.97549917,138.02,137.97,3.41549917]
[1764102795510,6.63549917,138.02,137.97,3.41549917]
[1764102795817,3.41549917,138.01,137.97,3.41549917]
[1764102796009,2.75549917,138.01,137.97,3.41549917]
[1764102796208,2.75549917,138.01,137.98,7.24742716]
[1764102796414,13.88104516,138.02,137.98,7.24742716]
[1764102796602,13.22104516,138.02,137.98,7.24742716]
[1764102796928,7.24429523,138.04,137.99,3.41549917]
[1764102797102,3.22,138.03,137.99,3.41549917]
[1764102797309,3.22,138.04,138.0,3.41549917]
[1764102797614,11.12395882,138.05,138.01,2.75549917]
[1764102797805,11.12395882,138.05,138.01,3.41549917]
[1764102798415,7.63100282,138.06,138.02,10.00082593]
[1764102798605,10.85100282,138.06,138.02,10.66082593]
[1764102798797,14.26650199,138.06,138.02,10.66082593]
[1764102798993,0.38771655,138.09,138.05,2.75549917]
[1764102799192,7.90080801,138.11,138.08,2.75549917]
[1764102799498,3.22,138.1,138.07,2.75549917]
[1764102800313,3.22,138.1,138.07,9.9978037]
[1764102800512,10.46113574,138.1,138.06,7.90303638]
[1764102800719,7.60369726,138.09,138.05,13.79951442]
[1764102800924,7.60369726,138.09,138.05,7.24353371]
[1764102801896,6.55598071,138.07,138.03,0.66]
[1764102802110,6.94369726,138.07,138.02,6.55598071]
[1764102802420,7.21598071,138.06,138.02,7.2450297]
[1764102802599,10.43598071,138.06,138.02,7.2450297]
[1764102802922,10.43598071,138.06,138.01,14.46160031]
[1764102803125,7.21598071,138.05,138.01,14.46160031]
[1764102803324,7.21598071,138.05,138.01,7.9056196]
[1764102803794,7.27598071,138.04,138.0,7.24622262]
[1764102803993,6.55598071,138.02,137.97,7.23598071]
[1764102804208,6.55598071,138.01,137.97,7.92795245]
[1764102804409,3.22,138.02,137.98,0.68]
[1764102804410,10.49598071,138.02,137.98,0.68]
[1764102805904,17.74133843,138.02,137.98,7.9270554]
[1764102806827,10.49598071,138.02,137.98,7.9270554]
[1764102807121,17.74139086,138.02,137.98,7.9270554]
[1764102807643,6.55598071,137.99,137.96,0.2]
[1764102807949,13.80393316,137.97,137.96,0.2]
[1764102808523,14.52393316,137.97,137.96,0.2]
[1764102808832,26.80484471,137.97,137.96,0.2]
[1764102809020,20.248864,137.97,137.96,0.2]
[1764102809319,26.80484471,137.97,137.96,0.2]
[1764102809925,34.05279716,137.97,137.96,0.2]
[1764102810129,14.52332025,137.99,137.96,0.2]
[1764102810423,3.22,137.97,137.96,0.2]
[1764102810803,14.52332025,137.99,137.96,0.2]
[1764102810804,7.27598071,138.02,137.96,14.68434415]
[1764102811007,3.22,138.01,137.97,6.55598071]
[1764102811206,3.22,138.01,137.98,0.68]
[1764102811411,3.22,138.01,137.98,7.23598071]
[1764102811611,6.55598071,138.0,137.96,7.44836344]
[1764102811816,3.94,138.01,137.97,0.68]
[1764102812023,3.22,138.01,137.97,0.68]
[1764102812225,3.22,138.01,137.98,7.24742716]
[1764102812608,3.22,138.01,137.98,7.92742716]
[1764102812807,3.94,138.01,137.97,7.24776474]
[1764102813015,3.22,138.01,137.97,7.92776474]
[1764102813212,3.22,138.01,137.98,0.68]
[1764102813616,3.22,138.01,137.98,7.23598071]
[1764102813825,3.22,138.02,137.99,6.55598071]
[1764102814041,3.22,138.02,137.99,7.23598071]
[1764102814228,3.22,138.03,137.99,14.4824377]
[1764102814824,7.27598071,138.02,137.97,14.48349775]
[1764102815022,7.66369726,138.01,137.96,14.00436935]
[1764102815337,3.22,138.0,137.96,14.00436935]
[1764102815634,10.49598071,138.0,137.96,0.88]
[1764102815824,3.94,138.0,137.96,8.12845422]
[1764102816025,10.49598071,138.0,137.96,8.12845422]
[1764102816209,17.410107,138.0,137.96,8.12845422]
[1764102816406,3.22,138.0,137.97,7.23598071]
[1764102816638,3.22,138.0,137.97,12.110387]
[1764102816936,3.22,138.0,137.97,0.68]
[1764102817733,3.22,138.0,137.97,12.110387]
[1764102817921,18.67537417,138.03,137.98,11.430387]
[1764102818129,3.22,138.02,137.98,0.68]
[1764102818319,11.18553604,138.02,137.98,7.92732003]
[1764102818943,10.46553604,138.02,137.98,7.24732003]
[1764102819126,22.61592304,138.02,137.98,0.68]
[1764102819315,3.22,138.02,137.99,0.68]
[1764102819516,3.22,138.01,137.99,0.68]
[1764102819717,3.22,138.01,137.99,12.110387]